Cogmind - Beta 14 @@@ ROGUE MODE // 2024.09.06 @ 02:00:31 Player: THN-L0C Result: Destroyed by S-27 Virus with Autogun Performance ------------- Evolutions (4) 2000 Regions Visited (6) 1200 Robots Destroyed (61) 305 Value Destroyed (1602) 1602 Prototype IDs (25) 500 Alien Tech Used (0) 0 Bonus (185) 185 TOTAL SCORE: 5792 Bonus ------- Follower Combat Kills 45 Registered with UFD 300 Friendly Fire -160 Cogmind --------- Core Integrity 0/850 Matter 300/300 Energy 99/100 System Corruption 7% Temperature Cool (0) Movement Core (50) Location -6/Lower Caves Parts ------- > --- POWER (2) -------- (None) > --- PROPULSION (4) --- (None) > --- UTILITY (7) ------ (None) > --- WEAPON (2) ------- (None) > --- INVENTORY (5) ---- Deep Structural Scanner Rainbow Chip Junk Cannon (0) Companion Sword Peak State ------------ > --- POWER ------------ Makeshift Power Source Fission Core > --- PROPULSION ------- Carbon-fiber Leg Carbon-fiber Leg Compact Wheel Gravmag System > --- UTILITY ---------- Large Storage Unit Advanced Melee Analysis Suite Transmission Jammer Medium Armor Plating Makeshift Light Armor Plating Hacking Suite Makeshift System Shield > --- WEAPON ----------- Companion Sword Heavy Pick > --- INVENTORY -------- Light Angular Momentum Engine Large Matter Pod Deep Structural Scanner Surveybot 17 Chip A0-MCA's Component Scanner Rainbow Chip Magnetic Acceleration Cannon Subdweller Shrapnel Launcher Plasma Cutter CPS Tube CPS Tube Junk Cannon Vortex Trap Vortex Trap [Rating: 60] Favorites ----------- Power Makeshift Power Source Engine Makeshift Power Source Power Core Fission Core Propulsion Light Treads Treads Light Treads Leg Carbon-fiber Leg Wheel Compact Wheel Hover Unit Airjet Utility Large Storage Unit Device Improved Terrain Scanner Storage Large Storage Unit Processor Advanced Melee Analysis Suite Hackware Makeshift System Shield Protection Makeshift Light Armor Plating Weapon Slug Cannon Energy Gun High-powered Shock Rifle Energy Cannon Subdweller Beam Cannon Ballistic Gun Autogun Ballistic Cannon Slug Cannon Launcher Grenade Launcher Special Weapon Junk Cannon Slashing Weapon Companion Sword Piercing Weapon Heavy Pick Build | -11 -10 -10 -8 -8 -6 -6 ------- Run | Yrd Mat Sub Rec Scr Fac Low Slots Evolved 8 | . . . . . 8 . Power 1 | . . . . . 1 . Propulsion 2 | . . . . . 2 . Utility 5 | . . . . . 5 . Weapon . | . . . . . . . Parts Attached 107 | 5 16 33 1 11 27 14 Power 9 | . 1 3 . 1 4 . Engine 8 | . 1 3 . 1 3 . Core 1 | . . . . . 1 . Reactor . | . . . . . . . Propulsion 17 | 2 . 3 . 4 5 3 Treads 6 | 2 . 1 . . . 3 Leg 3 | . . . . 1 2 . Wheel 6 | . . 2 . 2 2 . Hover 2 | . . . . 1 1 . Flight . | . . . . . . . Utility 33 | 1 9 8 . 2 10 3 Device 14 | 1 3 5 . . 4 1 Storage 5 | . 2 . . 1 2 . Processor 2 | . . . . . 1 1 Hackware 2 | . . . . . 2 . Protection 10 | . 4 3 . 1 1 1 Artifact . | . . . . . . . Weapon 48 | 2 6 19 1 4 8 8 Energy Gun 4 | 1 1 . . . 1 1 Energy Cannon 7 | . . 6 1 . . . Ballistic Gun 8 | 1 3 3 . . 1 . Ballistic Cannon 4 | . 1 2 . . 1 . Launcher 7 | . 1 5 . . 1 . Special Weapon 7 | . . 3 . 1 . 3 Impact Weapon . | . . . . . . . Slashing Weapon 10 | . . . . 2 4 4 Piercing Weapon 1 | . . . . 1 . . Special Melee Weapon . | . . . . . . . Unidentified Prototypes 3 | . . . . 2 . 1 Parts Lost 26 | . . 4 . . 18 4 Power 5 | . . 1 . . 3 1 Propulsion 9 | . . 2 . . 5 2 Utility 9 | . . 1 . . 7 1 Weapon 3 | . . . . . 3 . Highest Loss Streak 12 | . . 1 . . 12 2 To Critical Strikes 1 | . . . . . 1 . Average Slot Usage (%) 86 | . 97 96 100 75 53 57 Engine 11 | . 13 14 14 8 4 4 Treads 9 | . 28 13 . . . 10 Wheel 13 | . . 10 28 24 5 5 Device 7 | . 5 9 14 4 5 10 Storage 12 | . 11 14 14 13 3 6 Protection 4 | . 9 4 . 1 4 5 Energy Cannon 8 | . . 12 14 4 . . Ballistic Gun 4 | . 25 5 . . . . Ballistic Cannon 5 | . 1 6 14 4 . . Launcher 1 | . . 2 . . . . Slashing Weapon 2 | . . . . 9 3 . Peak Build Rating 60 | 5 12 23 21 34 60 48 Average Rating 19 | 3 10 16 21 20 33 39 On Entrance 16 | . 5 11 21 21 34 20 Naked Turns 271 | . . . . 85 180 6 Heaviest Build 95 | 4 36 43 40 95 95 36 Greatest Support 51 | 40 40 40 36 16 32 51 Greatest Overweight (x) 26 | . . 2 2 26 5 3 Average Overweight (x) 1 | . . 1 . 3 . 2 Largest Inventory Capacity 25 | 5 15 15 15 25 25 5 Average Capacity 15 | 5 11 15 15 21 11 5 Most Carried 25 | 4 15 15 15 25 25 5 Average Carried 15 | 1 11 14 15 19 11 3 Final Capacity 25 | 5 15 15 15 25 5 5 Final Carried 25 | 4 15 15 15 25 5 5 Class Distribution -------------------- 90% | Mutant 3% | Scavenger-Mutant Dominant Class ---------------- Mutant | -10/Materials Mutant | -10/Subcaves Mutant | -8/Recycling Mutant | -8/Scraptown Hacker-Gladiator | -6/Factory Scavenger-Mutant | -6/Lower Caves Resources | -11 -10 -10 -8 -8 -6 -6 ----------- Run | Yrd Mat Sub Rec Scr Fac Low Matter Collected 2411 | 274 588 724 28 100 466 231 Remotely . | . . . . . . . Salvage Created 2397 | 193 446 700 78 . 700 280 Parts 129 | 13 43 29 2 . 38 4 Haulers Intercepted 1 | . 1 . . . . . Recyclers Shooed 3 | 1 1 . . . 1 . Parts Field Recycled . | . . . . . . . Retrieved Matter . | . . . . . . . Parts Self-Destructed 11 | . . 10 . . . 1 Prevented . | . . . . . . . Kills | -11 -10 -10 -8 -8 -6 -6 ------- Run | Yrd Mat Sub Rec Scr Fac Low Combat Hostiles Destroyed 43 | . 12 15 . . 11 5 Melee 10 | . . . . . 8 2 Guns 14 | . 12 2 . . . . Cannons 8 | . . 6 . . 1 1 AOE 8 | . . 6 . . 2 . Classes Destroyed 14 | 2 6 3 . . 2 1 Worker 5 | . 1 . . . 4 . Builder 2 | . 2 . . . . . Tunneler 4 | 4 . . . . . . Hauler 1 | . 1 . . . . . Recycler 3 | 1 . . . . 2 . Watcher 3 | . 2 . . . 1 . Swarmer 16 | . 9 . . . 6 1 Grunt 9 | . 3 . . . 3 3 Brawler 1 | . . . . . 1 . Duelist 1 | . . . . . . 1 Sentry 1 | . . 1 . . . . Programmer 1 | . . . . . 1 . Cobbler 2 | . . 2 . . . . Subdweller 14 | . . 14 . . . . Best Kill Streak 6 | 5 3 2 . . 6 3 Combat Bots Only 5 | . 3 2 . . 5 3 Max Kills in Single Turn 2 | 1 1 2 . . 2 1 Gunslinging . | . . . . . . . Exploded 2 | . . 2 . . 2 . Melee 1 | . . . . . 1 1 Uniques/NPCs Destroyed . | . . . . . . . Combat | -11 -10 -10 -8 -8 -6 -6 -------- Run | Yrd Mat Sub Rec Scr Fac Low Hostile Shots Fired 326 | . 45 46 . . 163 72 Missed 93 | . 14 15 . . 43 21 Damage Taken 3910 | . 304 757 . . 1978 871 Core 1029 | . 38 139 . . 656 196 Absorbed by Shields 36 | . . . . . 36 . Core Remaining (%) 64 | 100 . . . 29 . . Volleys Fired 200 | 8 47 112 12 . 16 5 Largest 2 | 2 2 2 1 . 2 1 Hottest 128 | 60 70 128 80 . 88 . Shots Fired 265 | 16 94 121 12 . 17 5 Gun 126 | 16 93 15 . . 2 . Cannon 108 | . 1 81 12 . 14 . Launcher 12 | . . 11 . . 1 . Special 19 | . . 14 . . . 5 Kinetic 144 | 8 89 31 . . 16 . Thermal 69 | 8 5 44 12 . . . Explosive 11 | . . 11 . . . . Electromagnetic 36 | . . 35 . . 1 . Impact 5 | . . . . . . 5 Robot Hit Streak 23 | 13 14 15 20 . 23 6 Robot Miss Streak 6 | . 6 3 . . 6 . Penetration Max . | . . . . . . . Secondary Targets 2 | . 2 . . . . . Max Gunslinging Chain 1 | . 1 . . . . . Shots Hit Robots 170 | 13 43 52 5 . 41 16 Core Hits 76 | 6 20 28 1 . 16 5 Critical Kills 1 | . . 1 . . . . Critical Parts Destroyed 2 | . . . . . . 2 Critical Strikes 6 | . . 2 . . 2 2 Destroy 2 | . . 2 . . . . Smash 2 | . . . . . . 2 Melee Attacks 66 | . . . . . 48 18 Impact . | . . . . . . . Slashing 56 | . . . . . 38 18 Piercing 10 | . . . . . 10 . Sneak Attacks 6 | . . . . . 6 . Combat Hostiles . | . . . . . . . Follow-up Attacks 1 | . . . . . 1 . Damage Inflicted 5618 | 164 627 1834 129 . 2029 835 Guns 996 | 164 612 195 . . 25 . Cannons 1179 | . 15 764 129 . 271 . Explosions 1268 | . . 875 . . 393 . Melee 1838 | . . . . . 1340 498 Ramming . | . . . . . . . Kinetic 1687 | 100 615 308 . . 664 . Thermal 296 | 64 12 91 129 . . . Explosive 815 | . . 815 . . . . Electromagnetic 645 | . . 620 . . 25 . Impact 337 | . . . . . . 337 Slashing 1755 | . . . . . 1257 498 Piercing 83 | . . . . . 83 . Highest Corruption 7 | . . . . . 7 7 Average Corruption 6 | . . . . . 6 7 Corruption Purged . | . . . . . . . Corruption Blocked . | . . . . . . . Effects 33 | . . . . . 11 22 Message Errors 8 | . . . . . 4 4 Matter Fused 8 | . . . . . 4 4 Heat Flow Errors 3 | . . . . . . 3 Energy Discharges 3 | . . . . . 1 2 Parts Rejected 1 | . . . . . . 1 Parts Fused 1 | . . . . . . 1 Data Loss (minor) 7 | . . . . . 2 5 Data Loss (major) 1 | . . . . . . 1 Alerts 1 | . . . . . . 1 Overload Shots . | . . . . . . . Overflow Damage 349 | . . . 11 . 214 124 Projectiles 156 | . . . 11 . 21 124 Explosions 3 | . . . . . 3 . Melee 190 | . . . . . 190 . Knockbacks 6 | . 1 . . . 2 3 Impact 3 | . . . . . . 3 Kinetic 3 | . 1 . . . 2 . Secondary . | . . . . . . . Self-Inflicted Damage 47 | . . . . . 47 . Shots 1 | . . . . . 1 . Rammed 1 | 1 . . . . . . Targets Rammed 1 | 1 . . . . . . Kicked . | . . . . . . . Crushed . | . . . . . . . Highest Temperature 305 | . 90 80 305 . 21 229 Average Temperature 46 | . 19 18 105 . 9 98 Received Heat Transfer 434 | . 12 81 . . 152 189 Siege Activations . | . . . . . . . Robots Corrupted 4 | . . 2 . . . 2 Combat Hostiles 3 | . . 1 . . . 2 Parts Fried 5 | . . 3 . . . 2 Impact Corruptions 2 | . . . . . . 2 Robots Melted . | . . . . . . . Combat Hostiles . | . . . . . . . Parts Melted . | . . . . . . . Heat Transferred 509 | 150 37 137 185 . . . Parts Sabotaged . | . . . . . . . Parts Stolen . | . . . . . . . Parts Stripped . | . . . . . . . Power Chain Reactions 2 | . . 2 . . . . Alert | -11 -10 -10 -8 -8 -6 -6 ------- Run | Yrd Mat Sub Rec Scr Fac Low Peak Influence 306 | 25 181 . 127 . 306 . Initial 16 | . 16 . 12 . . . Average 71 | 12 78 . 36 . 107 . Maximum Alert Level 1 | . . . . . 1 . Low Security (%) 95 | 100 100 . 100 . 83 . Level 1 4 | . . . . . 16 . Level 2 . | . . . . . . . Level 3 . | . . . . . . . Level 4 . | . . . . . . . Level 5 . | . . . . . . . High Security . | . . . . . . . Max Security . | . . . . . . . Squads Dispatched 8 | . 1 . . . 7 . Investigation 2 | . 1 . . . 1 . Extermination 1 | . . . . . 1 . Reinforcement 5 | . . . . . 5 . Assault . | . . . . . . . Garrison . | . . . . . . . Intercept . | . . . . . . . Searches Triggered . | . . . . . . . Construction Impeded 2 | . . . . . 2 . Haulers Reinforced . | . . . . . . . Active Scanning Responses . | . . . . . . . Cargo Convoy Interrupts . | . . . . . . . Stealth | -11 -10 -10 -8 -8 -6 -6 --------- Run | Yrd Mat Sub Rec Scr Fac Low Distress Signals 2 | . 1 . . . 1 . Communications Jammed 1 | . . . . . 1 . Distress Signals 1 | . . . . . 1 . Times Spotted 78 | . 20 21 . . 20 17 Peak Tracking Total 8 | . 3 2 . . 6 8 Tactical Retreats 15 | . 4 5 . . 3 3 Traps | -11 -10 -10 -8 -8 -6 -6 ------- Run | Yrd Mat Sub Rec Scr Fac Low Traps Triggered 4 | . 2 1 . . 1 . Indirectly . | . . . . . . . Trap Hack Attempts . | . . . . . . . Triggered . | . . . . . . . Disarmed . | . . . . . . . Reprogrammed . | . . . . . . . Reused . | . . . . . . . Traps Extracted . | . . . . . . . Installed 1 | . . . . . 1 . Triggered . | . . . . . . . Most Traps Carried 3 | . . 1 1 3 2 . Machines | -11 -10 -10 -8 -8 -6 -6 ---------- Run | Yrd Mat Sub Rec Scr Fac Low Machines Disabled 5 | . . 1 . . 3 1 Max in Single Turn 1 | . . 1 . . 1 1 Machines Repaired . | . . . . . . . Machines Dismantled . | . . . . . . . Machines Sabotaged . | . . . . . . . Overloaded Fab Kills . | . . . . . . . Hacking | -11 -10 -10 -8 -8 -6 -6 --------- Run | Yrd Mat Sub Rec Scr Fac Low Machines Accessed 32 | . 9 2 10 4 7 . Terminals 15 | . 7 . 5 . 3 . Fabricators 1 | . . . . . 1 . Repair Stations . | . . . . . . . Recycling Units 10 | . 2 . 5 . 3 . Scanalyzers . | . . . . . . . Garrison Access . | . . . . . . . Total Hacks 110 | . 25 13 28 27 17 . Successful 74 | . 13 13 17 27 4 . Failed 35 | . 11 . 11 . 13 . Catastrophic 3 | . . . 1 . 2 . Database Lockouts 1 | . 1 . . . . . Manual 46 | . 21 . 15 . 10 . Terminals 50 | . 23 . 19 . 8 . Fabricators 1 | . . . . . 1 . Repair Stations . | . . . . . . . Recycling Units 19 | . 2 . 9 . 8 . Scanalyzers . | . . . . . . . Garrison Access . | . . . . . . . Terminal Hacks 49 | . 4 13 5 27 . . Record 31 | . . 12 . 19 . . Part Schematic 1 | . . . 1 . . . Robot Analysis 8 | . 2 . . 6 . . Prototype ID Bank 3 | . 1 . 2 . . . Open Door 1 | . . . . 1 . . Terminal Index 1 | . 1 . . . . . Recycling Unit Index 1 | . . . 1 . . . Zone Layout 1 | . . . 1 . . . Derelict Proto ID Bank 2 | . . 1 . 1 . . Fabricator Hacks . | . . . . . . . Repair Station Hacks . | . . . . . . . Recycling Unit Hacks 4 | . 1 . 1 . 2 . Retrieve Components 4 | . 1 . 1 . 2 . Scanalyzer . | . . . . . . . Garrison Access Hacks . | . . . . . . . Unauthorized Hacks 21 | . 8 . 11 . 2 . Terminals 16 | . 8 . 7 . 1 . Botnet 5 | . 3 . 2 . . . Skim 11 | . 5 . 5 . 1 . Fabricators . | . . . . . . . Repair Stations 1 | . . . . . 1 . Recycling Units 4 | . . . 4 . . . Tunnel 4 | . . . 4 . . . Scrapoids 1 | . . . . . 1 . Scanalyzers . | . . . . . . . Garrison Access . | . . . . . . . Data Cores Recovered . | . . . . . . . Used . | . . . . . . . Hacking Detections 16 | . 7 . 5 . 4 . Full Trace Events 1 | . . . 1 . . . Feedback Events . | . . . . . . . Feedback Blocked . | . . . . . . . Robot Schematics Acquired . | . . . . . . . Robots Built . | . . . . . . . Authchips . | . . . . . . . Time . | . . . . . . . Total Robot Build Rating . | . . . . . . . Part Schematics Acquired 1 | . . . 1 . . . Parts Built . | . . . . . . . Authchips . | . . . . . . . Time . | . . . . . . . Total Part Build Rating . | . . . . . . . Parts Repaired . | . . . . . . . Time . | . . . . . . . Parts Recycled . | . . . . . . . Recycled Matter . | . . . . . . . Retrieved Matter . | . . . . . . . Retrieved Components 11 | . 2 . . . 9 . Parts Scanalyzed . | . . . . . . . Part Schematics Acquired . | . . . . . . . Parts Damaged . | . . . . . . . Bothacking | -11 -10 -10 -8 -8 -6 -6 ------------ Run | Yrd Mat Sub Rec Scr Fac Low Used RIF Installer . | . . . . . . . Robots Hacked . | . . . . . . . Non-combat . | . . . . . . . Combat . | . . . . . . . Robot Hacks Applied . | . . . . . . . Relay Couplers Released . | . . . . . . . Fabnet Peak Effective % . | . . . . . . . Robots Rewired . | . . . . . . . Allies Hacked . | . . . . . . . Hacks Repelled . | . . . . . . . Allies | -11 -10 -10 -8 -8 -6 -6 -------- Run | Yrd Mat Sub Rec Scr Fac Low Total Allies 5 | . . . . . 5 . Largest Group 4 | . . . . . 4 . Highest-Rated Group 112 | . . . . . 112 . Highest-Rated Ally 28 | . . . . . 28 . Total Orders . | . . . . . . . Ally Attacks 69 | . . . . . 69 . Total Damage 1160 | . . . . . 1160 . Kills 11 | . . . . . 11 . Allies Corrupted . | . . . . . . . Allies Melted . | . . . . . . . Intel | -11 -10 -10 -8 -8 -6 -6 ------- Run | Yrd Mat Sub Rec Scr Fac Low Robot Analysis Total 8 | . 2 . . 6 . . Derelict Logs Recovered 6 | . . 2 . 4 . . Drone Launches . | . . . . . . . Drone Recoveries . | . . . . . . . Exploration | -11 -10 -10 -8 -8 -6 -6 ------------- Run | Yrd Mat Sub Rec Scr Fac Low Turns Passed 15446 | 115 1277 7382 951 4127 814 780 Spaces Moved 8452 | 52 671 3240 642 2677 596 574 Core 489 | 5 . . . 165 306 13 Treads 1930 | 47 671 1210 . . . 2 Legs 44 | . . . . . 44 . Wheels 5989 | . . 2030 642 2512 246 559 Hover . | . . . . . . . Flight . | . . . . . . . Fastest Speed 50 | 50 160 105 105 50 50 50 Average Speed 139 | 149 160 141 116 152 90 119 Slowest Speed 1350 | 160 160 320 130 1350 300 160 Overloaded Moves . | . . . . . . . Propulsion Burnouts . | . . . . . . . Robots Hopped . | . . . . . . . Cave-ins Triggered . | . . . . . . . Exploration Rate (%) 63 | 4 95 97 80 93 17 56 Regions Visited 6 Branch Regions 4 Pre-discovered Areas 12 | . . 2 5 5 . . Known Exits Taken 5 | . 1 1 1 1 1 . Unknown Exits Taken 1 | 1 . . . . . . Scrap Searched 10 | . . 4 . 4 . 2 Spaces Dug 32 | . . 17 5 . 6 4 Terrain Destroyed 89 | . . 64 7 . 14 4 Melee 10 | . . . . . 6 4 Projectile 27 | . . 19 7 . 1 . AOE 52 | . . 45 . . 7 . Terrain Rammed . | . . . . . . . Walls Destroyed . | . . . . . . . Machines Disabled . | . . . . . . . Actions | -11 -10 -10 -8 -8 -6 -6 --------- Run | Yrd Mat Sub Rec Scr Fac Low Total 11744 | 70 802 5884 834 2733 784 637 Wait 2759 | 1 29 2461 180 . 76 12 Move 8446 | 51 670 3239 641 2676 595 574 Hop . | . . . . . . . Pick Up 91 | 4 24 19 . 32 11 1 Fast Attach 34 | 5 2 1 . 7 12 7 Attach 24 | . 3 4 . 2 11 4 Detach 10 | . . . . 1 4 5 Swap 49 | . 11 28 1 2 4 3 Drop 65 | . 16 20 . 13 13 3 Fire 200 | 8 47 112 12 . 16 5 Melee 59 | . . . . . 41 18 Ram . | . . . . . . . Kick . | . . . . . . . Crush 1 | 1 . . . . . . Escape Stasis . | . . . . . . . Rewire 5 | . . . . . . 5 Trap 1 | . . . . . 1 . Miscellaneous . | . . . . . . . Route ------- -11/Scrapyard -10/Materials (discovered 6 exits: [*Mat x3] / *Min x2 / *Sub) -10/Subcaves (discovered 3 exits: *Mat x2 / *Rec) -8/Recycling (discovered 2 exits: *Fac / *Scr) -8/Scraptown (discovered 2 exits: *Fac x2) -6/Factory (discovered 6 exits: Fac x4 / *Low x2) -6/Lower Caves (discovered 1 exit: Low) History --------- Turn | Location | Event 5 | -11/Scrapyard | Discovered new exit (range 16) 116 | -11/Scrapyard | Entered Materials 242 | -10/Materials | Discovered new exit (range 6) 324 | -10/Materials | Build established: Mutant 838 | -10/Materials | Discovered new exit (range 9) 988 | -10/Materials | Discovered new exit (range 15) 1057 | -10/Materials | Discovered new exit (range 7) 1106 | -10/Materials | Identified exit to Mines 1106 | -10/Materials | Identified exit to Subcaves 1106 | -10/Materials | Learned location of 1 exit from Materials 1113 | -10/Materials | Learned 4 Subcaves zone layouts 1122 | -10/Materials | Learned location of 1 exit from Storage 1140 | -10/Materials | Learned 4 Recycling zone layouts 1240 | -10/Materials | Central database locked down 1393 | -10/Materials | Entered Subcaves 1394 | -10/Subcaves | Identified exit to Materials 1977 | -10/Subcaves | A swath of the cavern ceiling suddenly collapsed 2132 | -10/Subcaves | Identified exit to Recycling 2262 | -10/Subcaves | Learned location of Zion (-7) 2262 | -10/Subcaves | Met a Zionite searching for "candidates" 2592 | -10/Subcaves | Visited 4L-MR0's lab 2610 | -10/Subcaves | Found Rainbow Chip 3104 | -10/Subcaves | Disturbed a concealed Subdweller 3281 | -10/Subcaves | Visited Clippyterm 3285 | -10/Subcaves | Learned location of Section 7 (-3) 3285 | -10/Subcaves | Learned 40 Factory zone layouts 3804 | -10/Subcaves | Shifting Twisted Machinery released Sub. Machine Gun 3813 | -10/Subcaves | Shifting Twisted Machinery released Sub. Power Source 3922 | -10/Subcaves | Shifting Twisted Machinery released Hvy. Battle Rifle 3934 | -10/Subcaves | Shifting Twisted Machinery released Sub. Beam Cannon 4979 | -10/Subcaves | Learned 2 Materials zone layouts 5678 | -10/Subcaves | Ambushed by Subdweller buried in earth 5682 | -10/Subcaves | Core integrity fell below 50% 5971 | -10/Subcaves | Ambushed by Subdweller buried in earth 8775 | -10/Subcaves | Entered Recycling 8776 | -8/Recycling | Identified exit to Factory 9430 | -8/Recycling | Learned location of 2 exits from Factory 9484 | -8/Recycling | Identified exit to Scraptown 9512 | -8/Recycling | Scanned before Scraplab entrance 9530 | -8/Recycling | Entered Scraplab 9564 | -8/Recycling | Learned location of 2 exits from Factory 9636 | -8/Recycling | Learned Factory interactive machine intel 9706 | -8/Recycling | Learned 2 Storage zone layouts 9726 | -8/Recycling | Entered Scraptown 9964 | -8/Scraptown | Heard Great Nut preacher, LISTEN AND RECITE! 10033 | -8/Scraptown | Scanned Subdweller tech in exchange for log data 10036 | -8/Scraptown | Learned Research emergency access door positions 10037 | -8/Scraptown | Learned Factory terminal intel 10038 | -8/Scraptown | Learned Factory emergency access door positions 10040 | -8/Scraptown | Learned Research garrison access intel 10131 | -8/Scraptown | Visited SPCMW 10198 | -8/Scraptown | Visited Spacefarers 10392 | -8/Scraptown | Visited Comm Corps 10504 | -8/Scraptown | Visited TADAMA 10545 | -8/Scraptown | Visited UFD Registry 10545 | -8/Scraptown | Registered with UFD as "Thunderboard" 10583 | -8/Scraptown | Visited A0-MCA Data Center 10591 | -8/Scraptown | Given a C+ rating by A0-MCA 10621 | -8/Scraptown | Visited Science Guys 10666 | -8/Scraptown | Visited Analyses Database 10717 | -8/Scraptown | Delivered Scrap Shield to a Scientist 10846 | -8/Scraptown | Visited Research Penetration Think Tank 10933 | -8/Scraptown | Visited Scrap Suit Storage 10964 | -8/Scraptown | Visited Sword Containment 11025 | -8/Scraptown | Visited Junk Repository 11081 | -8/Scraptown | Released all parts (7) 11083 | -8/Scraptown | Visited Cartography Club 11094 | -8/Scraptown | Found Surveybot 17 Chip 11110 | -8/Scraptown | Learned location of Recycling (-8) 11110 | -8/Scraptown | Learned location of Lower Caves (-7) 11110 | -8/Scraptown | Learned location of Armory (-3) 11110 | -8/Scraptown | Learned 20 Factory zone layouts 11110 | -8/Scraptown | Learned 24 Factory zone layouts 11110 | -8/Scraptown | Learned 4 Mines zone layouts 11110 | -8/Scraptown | Learned 24 Upper Caves zone layouts 11110 | -8/Scraptown | Learned 8 Proximity Caves zone layouts 11110 | -8/Scraptown | Learned 16 Proximity Caves zone layouts 11110 | -8/Scraptown | Learned 24 Proximity Caves zone layouts 11110 | -8/Scraptown | Learned 4 Hub_04(d) zone layouts 11110 | -8/Scraptown | Learned Storage emergency access door positions 11110 | -8/Scraptown | Learned location of 2 exits from Factory 11110 | -8/Scraptown | Learned location of 2 exits from Lower Caves 11121 | -8/Scraptown | Found Deep Structural Scanner 11369 | -8/Scraptown | Found A0-MCA's Component Scanner 11524 | -8/Scraptown | Visited Junk Cannon Lab 11540 | -8/Scraptown | Found Prototype Special Weapon 11540 | -8/Scraptown | Identified Junk Cannon 13853 | -8/Scraptown | Entered Factory 13853 | -6/Factory | Evolved 8 slots: Power x1, Propulsion x2, Utility x5 13854 | -6/Factory | Identified exit to Factory 13854 | -6/Factory | Identified exit to Lower Caves 13858 | -6/Factory | Loaded intel: 50 interactive machine locations 13859 | -6/Factory | Loaded intel: 25 terminal locations 14184 | -6/Factory | Build established: Hacker-Gladiator 14347 | -6/Factory | Lost 12 parts (2p4n4u2w) 14350 | -6/Factory | Core integrity fell below 50% 14385 | -6/Factory | Lost 3 parts (2u1w) 14479 | -6/Factory | Scrapoids reinforcements arrived? 14667 | -6/Factory | Entered Lower Caves 14668 | -6/Lower Caves | Identified exit to Lower Caves 14669 | -6/Lower Caves | UFD Scientist delivered a prototype 14670 | -6/Lower Caves | Found Prototype Protection 14670 | -6/Lower Caves | Identified Enh. Scrap Shield 14691 | -6/Lower Caves | Build established: Mutant 15236 | -6/Lower Caves | Core integrity fell below 20% 15375 | -6/Lower Caves | Build established: Scavenger-Mutant 15441 | -6/Lower Caves | Released all parts (6) 15442 | -6/Lower Caves | Attracted the attention of an 0b10 outpost 15447 | -6/Lower Caves | Destroyed by S-27 Virus with Autogun Last Messages --------------- 15407_ R61CYJUA:WO WZGB8GEH1>L=JTVSCF7Y&L7Y G92 15424_ S4V5AVNYICND>QMKJA5 15436_ Enh. Scrap Shield destroyed. 15436_ Slug penetrates Wall. 15436_ Wheel destroyed. 15436_ Slug penetrates Wall. 15438_ S-27 Virus destroyed. 15439_ System corrupted: Sml. Matter Pod fused. 15440_ Slug penetrates Wall. Companion Sword: "I think you're forgetting how effective I am." 15441_ Released Salvage Targeting Computer. 15441_ Released Cloaking Device. 15441_ Released Sml. Matter Pod. 15441_ Released Adv. ECM Suite. 15441_ Released Spk. Medium Treads. 15441_ Released Imp. Treads. 15442_ Y-64 Sentinel: "DETECTED UNIDENTIFIED DERELICT." 15442_ Penetrated by Slug. 15446_ Y-64 Sentinel: "REQUESTING BACKUP." 15447_ Slug penetrates Wall. Map ----- +----------------------------------------------------+ | ?????????????????????????????????????????????????? | | ?????????????????????????????????????????????????? | | ?????????????????????????????????????????????????? | | ????????????????????????###??????????????????????? | | ???????????????????????? #??????????????????????? | | ???????????????#?##?????# #??????????????????????? | | ???????????????# #"?????# #????????????###???????? | | ???????????????# # ????# #???????????"""""??????? | | ???????????????# ????# #??????????#"" ""#?????? | | ???????????????? ???# #???????????"" ""??????? | | ?????????????????# ???# #??????######" "#??????? | | ?????????????????# ??#s#?###?## #" "##?????? | | ???????????????# ### ###=### ### "" ""###???? | | ??????????????## !!## ## ##??# | | ??????????????# =%= ## ##?# | | ?????????????# h # # ### | | ?????????????## ##### # ### ## | | ??????????????# ?????# ^ #;# # | | ??????????????# ??????# # ;### ## # | | ????????????? ????????# # # #?## ### | | ????????????? ?????????# # # # #??##### | | ????????????????????????# ## #??????# | | ????????????????????????# # #??????## | | ???????????????????????## #???????##### | | ???????????????????????# ##??????????# | | ???????????????????????# @## #?????????### | | ???????????????????????# ### #??????? #### | | ????????????????????? ?# #?## ###### ??## | | ?????????????????? #??### #?????# | | ???????????????????# ????# #????## | | ???????????????????# ### ??????## | | ???????????????????# ### ???????## | | ???????????????????## ### #????????### | | ????????????????????# ???### ###?????## | | ????????????????????## ???# ###???# ### | | ?????????????????????##### #??# #???# ### | | ??????????????????????????##??# ##??# ## | | ??????????????????????????????# #??# ## | | ??????????????????????????????# ## #?## ### | | ?????????????????????????????## ######## ##?# | | ????????????????????????????## #??### ##??# | | ????????????????????????????# #?## #???# | | ????????????????????????????# #### ##### | | ???????????????????????????## ##?# ## # | | ??????????????????????????## ##??# ##### | | ??????????????????????????# ###???# ##### ## | | ??????????????????????????# #?????## # ## | | ??????????????????????????## ####???## ## | | ???????????????????????????# #???##" ##### | | ??????????????????????????## #?###"######???# | +----------------------------------------------------+ Best States ------------- Heat Dissipation 37 Energy Generation 28 Energy Capacity 825 Matter Stores 350 Matter Capacity 350 Sight Range 16 Terrain Scan Range 16 Terrain Scan Density 10 ECM Strength 2 Jamming Range 12 Cloak Strength 2 Armor Coverage 800 Evasion (%) 50 Melee Accuracy 8 Recoil Reduction 3 Salvage Targeting 1 Offensive Hacking 10 Defensive Hacking 11 Item Schematics ----------------- Transmission Jammer | -8/Recycling | Hacked Robot Schematics ------------------ None Fabricated ------------ Nothing Alien Tech Used ----------------- None Achievements -------------- None Challenges ------------ None Game ------ Seed BladeStealthBay Manual? 0 Play Time 01:34:12 Cumulative 225.8 hours Start 2024.09.06 @ 00:26:09 End 2024.09.06 @ 02:00:31 Sessions 1 Manual Loads 0 Difficulty Rogue Special Mode None Game No. 197 Rogue 197 Adventurer 0 Explorer 0 Win Type - Total 1 Types 0/0/0/1/0/0/0/0/0 Lore% 64 Gallery% 73 Achievement% 54 Wizard Run 0 Options --------- Layout 2 ASCII 0 Keyboard 1 Movement Vi Keybinds 0 Fullscreen 1 Font 32/SmallcapsGlow Map View 77x44 Zoom Use 0% Tactical HUD 1 Map Filters NONE Filters NONE Steam 1 RUN: b6093f41-6c8b-4180-8890-5c5e40d1c318